bitfinex/quotes_ETHUSD_20240602
["timestamp","ask_amount","ask_price","bid_price","bid_amount"]
[1717344402666,2.62831,3804.8,3804.1,0.552]
[1717344402865,0.05818736,3804.2,3804.1,0.552]
[1717344403086,2.62831,3804.8,3804.1,0.552]
[1717344403259,0.05818736,3804.2,3803.9,4.90206]
[1717344403592,2.62831,3804.8,3804.1,0.552]
[1717344403775,0.75,3804.5,3804.3,0.552]
[1717344408887,0.75,3804.5,3803.9,4.90206]
[1717344409052,0.75,3804.5,3804.4,0.552]
[1717344410707,0.80814766,3804.5,3804.4,0.552]
[1717344412124,0.80814766,3804.5,3803.9,4.90206]
[1717344412606,0.80814766,3804.5,3804.3,0.552]
[1717344418503,0.80814766,3804.5,3803.9,4.90206]
[1717344418702,2.4231,3804.4,3803.6,2.62908]
[1717344418914,2.4231,3804.4,3803.3,9.89928]
[1717344418915,2.62861,3804.3,3803.3,9.89928]
[1717344419244,2.62861,3804.3,3803.7,0.552]
[1717344419372,2.62861,3804.3,3803.3,2.62928]
[1717344419574,0.05844552,3804.2,3803.7,0.552]
[1717344423199,0.05844552,3804.2,3803.3,2.62928]
[1717344423200,2.62876,3804.1,3803.3,2.62928]
[1717344423404,2.62876,3804.1,3803.7,0.552]
[1717344423575,2.68708242,3804.1,3803.7,0.552]
[1717344424109,2.4231,3804.0,3803.3,2.62928]
[1717344424316,2.4231,3804.0,3803.5,0.552]
[1717344424620,0.05829859,3803.9,3803.5,0.552]
[1717344425920,0.05829859,3803.9,3802.9,5.0218]
[1717344425921,2.68723859,3803.9,3802.9,5.0218]
[1717344426106,0.75,3803.7,3803.3,0.552]
[1717344426491,0.05827476,3803.6,3803.3,0.552]
[1717344426907,0.75,3803.7,3803.3,0.552]
[1717344427101,0.05805235,3803.5,3803.3,0.552]
[1717344427282,2.62894,3803.9,3803.3,0.552]
[1717344427478,0.05805235,3803.4,3803.3,0.552]
[1717344427685,2.62894,3803.9,3803.3,0.552]
[1717344427931,2.62894,3803.9,3802.9,5.0218]
[1717344427932,0.05805235,3803.4,3802.9,5.0218]
[1717344428104,0.75,3803.6,3802.9,5.0218]
[1717344428285,0.05800468,3803.3,3802.9,5.0218]
[1717344428621,2.62894,3803.9,3803.2,0.552]
[1717344428793,0.75,3803.6,3803.4,0.552]
[1717344435725,2.62894,3803.9,3803.4,0.552]
[1717344435924,0.75,3803.7,3803.6,0.552]
[1717344436793,0.75,3803.7,3803.4,0.552]
[1717344440631,0.05800072,3803.6,3803.4,0.552]
[1717344450665,2.62894,3803.9,3803.4,0.552]
[1717344450867,0.05612442,3803.5,3803.4,0.552]
[1717344451091,0.75,3803.7,3803.4,0.552]
[1717344451225,0.75,3803.7,3803.6,0.552]
[1717344453872,0.75,3803.7,3803.3,2.62924]
[1717344454457,0.75,3803.7,3802.9,2.62952]
[1717344454458,2.4294,3803.6,3802.9,2.62952]
[1717344454661,5.0585,3803.6,3802.6,0.28419211]
[1717344455177,5.0585,3803.6,3803.1,0.552]
[1717344455383,0.75,3803.2,3803.1,0.552]
[1717344455532,0.75,3803.2,3802.5,2.62979]
[1717344455732,0.80612044,3803.2,3803.1,0.552]
[1717344456574,0.80612044,3803.2,3802.5,2.62979]
[1717344457073,0.80612044,3803.2,3803.0,1.552]
[1717344462642,0.80612044,3803.2,3803.0,1.0]
[1717344462847,1.14966348,3803.2,3803.0,1.0]
[1717344463586,2.62943,3803.1,3803.0,1.0]
[1717344463991,2.6851651,3803.1,3803.0,1.0]
[1717344466845,5.0676651,3803.1,3803.0,1.0]
[1717344467462,5.6196651,3803.1,3803.0,1.0]
[1717344469366,8.2490951,3803.1,3803.0,1.0]
[1717344469566,9.68882661,3803.1,3803.0,1.0]
[1717344473918,2.63042,3801.7,3801.0,2.3205]
[1717344474229,0.05507939,3801.6,3801.2,0.552]
[1717344474787,0.80507939,3801.6,3801.2,0.552]
[1717344475678,0.80507939,3801.6,3801.0,2.3205]
[1717344475916,0.80507939,3801.6,3801.1,0.552]
[1717344476120,0.80507939,3801.6,3801.0,2.3205]
[1717344476418,0.80507939,3801.6,3801.0,2.8725]
[1717344477495,0.80507939,3801.6,3801.0,2.3205]
[1717344477691,0.80507939,3801.6,3801.0,2.8725]
[1717344478083,2.63056,3801.5,3801.0,2.3205]
[1717344478294,2.6848562,3801.5,3801.0,2.3205]
[1717344478500,2.6848562,3801.5,3801.1,0.552]
[1717344480414,2.6848562,3801.5,3801.0,0.552]
[1717344480893,2.6848562,3801.5,3800.8,0.572]
[1717344480894,2.63075,3801.2,3800.8,0.572]
[1717344481293,0.05423257,3801.1,3800.8,0.572]
[1717344481923,2.63088,3801.0,3800.8,0.02]
[1717344482129,2.68504894,3801.0,3800.8,0.02]
[1717344484605,2.68504894,3801.0,3800.8,0.572]
[1717344485210,2.68504894,3801.0,3800.8,0.02]
[1717344485533,2.95355383,3801.0,3800.8,0.02]
[1717344487539,2.8877,3800.9,3800.8,0.02]
[1717344487691,2.94159449,3800.9,3800.8,0.02]
[1717344488510,2.38959449,3800.9,3800.8,0.02]
[1717344491640,5.15859449,3800.9,3800.8,0.02]
[1717344491853,9.83268143,3800.9,3800.8,0.02]
[1717344493108,2.63206,3799.3,3798.8,2.4303]
[1717344493401,0.05343693,3799.2,3798.8,2.4303]
[1717344493625,0.75,3799.1,3798.9,0.552]
[1717344494030,0.05302308,3799.0,3798.9,0.552]
[1717344494226,0.05302308,3799.0,3798.8,2.4303]
[1717344494440,0.75,3799.1,3798.9,0.552]
[1717344494762,0.05302308,3799.0,3798.8,2.4303]
[1717344495046,0.75,3799.1,3798.9,0.552]
[1717344496619,0.75,3799.1,3798.6,2.63248]
[1717344496844,0.75,3799.1,3798.8,0.552]
[1717344498048,0.75,3799.1,3798.7,0.552]
[1717344498420,2.63234,3798.9,3797.6,8.06351]
[1717344498621,2.63234,3798.9,3797.6,5.06351]
[1717344499145,0.75,3798.6,3797.6,5.06351]
[1717344499614,0.75,3798.6,3798.1,0.552]
[1717344500523,0.75,3798.6,3797.6,5.06351]
[1717344500726,0.8024976,3798.6,3798.1,0.552]
[1717344501442,0.8024976,3798.6,3797.2,5.06379]
[1717344501443,3.1381976,3798.6,3797.2,5.06379]
[1717344501621,3.1381976,3798.6,3797.8,0.552]
[1717344502719,3.1381976,3798.6,3797.2,5.06379]
[1717344502918,3.1381976,3798.6,3797.9,0.552]
[1717344503546,3.1381976,3798.6,3797.2,5.06379]
[1717344503734,3.6901976,3798.6,3797.7,0.552]
[1717344503937,4.32245136,3798.6,3797.7,0.552]
[1717344504573,3.77045136,3798.6,3797.7,0.552]
[1717344504791,3.77045136,3798.6,3797.2,5.06379]
[1717344505081,3.77045136,3798.6,3797.6,0.552]
[1717344506038,3.77045136,3798.6,3797.8,0.552]
[1717344507242,3.77045136,3798.6,3797.6,0.552]
[1717344507781,0.8024976,3798.6,3798.4,0.552]
[1717344507952,0.8024976,3798.6,3798.5,6.4097]
[1717344508288,9.90183,3799.7,3798.7,2.63245]
[1717344508480,9.90183,3799.7,3799.5,0.552]
[1717344508676,2.63183,3799.7,3799.5,0.552]
[1717344509273,0.75,3799.6,3799.5,0.552]
[1717344509584,0.75,3799.6,3798.7,2.63245]
[1717344509789,2.63193,3799.5,3798.5,6.4097]
[1717344511192,2.63193,3799.5,3798.5,4.0]
[1717344514350,0.75,3799.6,3798.5,4.0]
[1717344514686,0.75,3799.6,3798.7,1.328]
[1717344514859,0.75,3799.6,3798.8,2.4097]
[1717344515186,0.75,3799.6,3799.1,2.63215]
[1717344515389,0.75,3799.6,3798.7,2.63247]
[1717344515767,0.05262101,3799.5,3798.7,2.63247]
[1717344517788,0.05262101,3799.5,3798.5,4.0]
[1717344517789,2.63221,3799.1,3798.5,4.0]
[1717344517968,0.75,3798.7,3798.5,4.0]
[1717344518580,0.05264889,3798.6,3798.5,4.0]
[1717344527261,2.47124889,3798.6,3798.5,4.0]
[1717344532970,0.05264889,3798.6,3798.5,4.0]
[1717344543851,8.42278889,3798.6,3798.5,4.0]
[1717344544076,15.27260778,3798.6,3798.5,4.0]
[1717344548013,2.63349,3797.3,3796.5,2.4538]
[1717344548462,0.05140627,3797.2,3796.5,2.4538]
[1717344548867,0.75,3796.8,3796.5,2.4538]
[1717344549246,0.0512708,3796.7,3796.5,2.4538]
[1717344549645,2.63349,3797.3,3796.5,2.4538]
[1717344549847,0.75,3796.8,3796.5,2.4538]
[1717344550258,0.0512708,3796.7,3796.5,2.4538]
[1717344550767,0.0512708,3796.6,3796.5,2.4538]
[1717344550991,2.63349,3797.3,3796.5,2.4538]
[1717344551172,0.05108347,3797.2,3796.6,2.63392]
[1717344551372,0.75,3796.8,3796.6,2.63392]
[1717344551990,0.05100377,3796.7,3796.6,2.63392]
[1717344552198,2.63349,3797.3,3796.6,2.63392]
[1717344552486,0.75,3796.9,3796.6,2.63392]
[1717344552989,0.0511114,3796.8,3796.6,2.63392]
[1717344553483,2.63349,3797.3,3796.6,2.63392]
[1717344553704,0.0511114,3796.7,3796.6,2.63392]
[1717344554301,0.75,3796.9,3796.6,2.63392]
[1717344554500,0.0511114,3796.7,3796.6,2.63392]
[1717344554709,0.75,3796.9,3796.6,2.63392]
[1717344554868,0.0511114,3796.7,3796.6,2.63392]
[1717344555073,2.63349,3797.3,3796.6,2.63392]
[1717344555309,0.0511114,3796.7,3796.6,2.63392]
[1717344555507,2.63349,3797.3,3796.6,2.63392]
[1717344555710,0.0511114,3796.7,3796.6,2.63392]
[1717344556007,0.05110742,3796.7,3796.6,2.63392]
[1717344556203,0.75,3796.9,3796.6,2.63392]
[1717344556503,0.05110742,3796.8,3796.6,2.63392]
[1717344557006,2.63349,3797.3,3796.6,2.63392]
[1717344557216,0.75,3796.9,3796.6,2.63392]
[1717344557765,0.05108351,3796.8,3796.6,2.63392]
[1717344558368,2.63349,3797.3,3796.6,2.63392]
[1717344558565,0.05105162,3797.2,3796.6,2.63392]
[1717344558768,0.75,3796.9,3796.6,2.63392]
[1717344558980,0.0510835,3796.8,3796.6,2.63392]
[1717344560007,2.63349,3797.3,3796.7,0.554]
[1717344560214,0.75,3796.9,3796.7,0.554]
[1717344560567,0.05104764,3796.8,3796.7,0.554]
[1717344561207,2.896839,3797.3,3796.7,0.554]
[1717344561418,0.75,3796.9,3796.7,0.554]
[1717344561781,0.75,3796.9,3796.5,2.4538]
[1717344562007,0.05104764,3796.8,3796.7,0.554]
[1717344564208,2.63349,3797.3,3796.7,0.554]
[1717344564374,0.05097989,3797.2,3796.9,0.554]
[1717344564576,2.63349,3797.3,3796.9,0.554]
[1717344564900,0.75,3797.0,3796.9,0.554]
[1717344565509,0.80097989,3797.0,3796.9,0.554]
[1717344567112,0.80097989,3797.0,3796.7,0.554]
[1717344567635,0.80097989,3797.0,3796.9,0.554]
[1717344575138,0.80097989,3797.0,3796.9,2.9608]
[1717344575289,0.05097989,3797.0,3796.9,2.9608]
[1717344575495,1.03169,3797.7,3796.9,2.4068]
[1717344575842,1.18121264,3797.6,3797.2,0.554]
[1717344576135,0.75,3797.3,3797.2,0.554]
[1717344576663,0.80104364,3797.3,3797.2,0.554]
[1717344577604,0.80104364,3797.3,3796.8,2.63378]
[1717344577953,0.80104364,3797.3,3796.8,3.18778]
[1717344578101,1.2574999,3797.3,3796.8,3.18778]
[1717344578540,6.8043999,3797.3,3796.4,2.63405]
[1717344578691,6.34794364,3797.3,3796.4,2.63405]
[1717344578895,5.59794364,3797.3,3796.4,2.63405]
[1717344579120,0.75,3796.5,3796.4,2.63405]
[1717344580043,4.9929,3797.3,3796.4,2.63405]
[1717344580349,1.27742929,3797.2,3796.7,0.554]
[1717344580498,0.75,3796.6,3796.4,2.63405]
[1717344580703,0.75,3796.6,3796.5,0.554]
[1717344581837,0.75,3796.7,3796.5,0.554]
[1717344582048,0.75,3796.7,3796.6,0.554]
[1717344582216,0.75,3796.7,3796.4,2.63405]
[1717344582410,0.75,3796.7,3796.6,0.554]
[1717344583208,0.75,3796.7,3796.4,2.63405]
[1717344583506,0.75,3796.7,3796.5,0.554]
[1717344587617,0.75,3796.7,3795.9,2.63437]
[1717344587879,0.75,3796.7,3796.4,0.554]
[1717344588035,0.575924,3796.6,3795.9,2.63437]
[1717344588360,0.575924,3796.6,3796.3,0.554]
[1717344590659,0.05064105,3796.5,3796.3,0.554]
[1717344591874,0.05064105,3796.4,3796.3,0.554]
[1717344592252,0.75,3796.7,3796.3,0.554]
[1717344592577,2.68458105,3796.6,3796.2,0.554]
[1717344594376,2.3755,3796.5,3796.2,0.554]
[1717344594740,0.0505693,3796.4,3796.2,0.554]
[1717344596077,0.0505693,3796.4,3795.9,2.63437]
[1717344596275,0.0505693,3796.4,3796.1,0.554]
[1717344596775,0.0505693,3796.4,3795.9,2.63437]
[1717344596963,0.0505693,3796.4,3796.2,0.554]
[1717344597174,0.68967104,3796.4,3795.9,2.63437]
[1717344597642,0.68967104,3796.4,3795.9,3.18837]
[1717344598057,0.68967104,3796.4,3796.1,0.554]
[1717344598476,0.68967104,3796.4,3796.0,0.554]
[1717344599385,0.68967104,3796.4,3795.6,2.63462]
[1717344599555,0.5699111,3796.3,3795.6,2.63462]
[1717344599763,2.6847093,3796.4,3795.6,3.18862]
[1717344599973,0.05034603,3796.2,3795.8,0.554]
[1717344600283,2.63414,3796.4,3795.6,2.63462]
[1717344600489,0.05034206,3796.1,3795.6,2.63462]
[1717344600686,0.75,3795.8,3795.2,4.98625]
[1717344600998,0.75,3795.8,3795.7,0.554]
[1717344601342,0.80034206,3795.8,3795.7,0.554]
[1717344601555,0.80034206,3795.8,3795.2,4.98625]
[1717344601751,0.80034206,3795.8,3795.7,0.554]
[1717344602576,0.80034206,3795.8,3795.7,2.9054]
[1717344602775,0.05034206,3795.8,3795.7,2.9054]
[1717344602956,2.63414,3796.4,3795.7,0.554]
[1717344603161,0.500964,3796.3,3796.0,0.554]
[1717344603349,0.75,3795.9,3795.5,2.63467]
[1717344603679,0.75,3795.9,3795.8,0.554]
[1717344603889,0.7999353,3795.9,3795.8,0.554]
[1717344604367,0.7999353,3795.9,3795.5,2.63467]
[1717344604550,0.7999353,3795.9,3795.8,0.554]
[1717344606195,0.7999353,3795.9,3795.1,2.63492]
[1717344606494,0.7999353,3795.9,3795.3,0.554]
[1717344606653,1.38090883,3795.9,3795.3,0.554]
[1717344606851,1.38090883,3795.9,3795.5,0.554]
[1717344607108,0.7999353,3795.9,3795.7,0.554]
[1717344607878,0.7999353,3795.9,3795.2,2.4417]
[1717344608086,0.7999353,3795.9,3795.6,0.554]
[1717344609562,0.7999353,3795.9,3795.2,2.4417]
[1717344609894,0.7999353,3795.9,3795.7,0.554]
[1717344611380,0.7999353,3795.9,3795.4,2.63476]
[1717344611613,0.7999353,3795.9,3795.4,5.07646]
[1717344611813,0.7999353,3795.9,3795.8,0.554]
[1717344614128,0.0499353,3795.9,3795.8,0.554]
[1717344614484,2.63406,3796.5,3795.8,0.554]
[1717344614695,0.797546,3796.4,3796.1,0.554]
[1717344614989,0.75,3796.2,3796.1,0.554]
[1717344618713,0.75,3796.2,3795.6,5.07626]
[1717344618894,0.75,3796.2,3795.8,0.554]
[1717344619291,0.75,3796.2,3795.6,2.63456]
[1717344619497,2.5169546,3796.1,3795.6,2.63456]
[1717344619807,2.5169546,3796.1,3795.3,4.89773]
[1717344620195,2.5169546,3796.1,3795.6,0.554]
[1717344620907,0.05007888,3796.0,3795.6,0.554]
[1717344621435,0.05007888,3796.0,3795.3,2.63483]
[1717344621625,0.05007888,3796.0,3795.7,0.554]
[1717344621936,0.64520323,3796.0,3795.7,0.554]
[1717344622148,0.64520323,3796.0,3795.3,2.63483]
[1717344622356,3.27961323,3796.0,3795.6,0.554]
[1717344628526,3.27961323,3796.0,3795.3,2.63483]
[1717344628748,3.27961323,3796.0,3795.6,0.554]
[1717344628923,0.65465678,3795.9,3795.6,0.554]
[1717344629264,0.04994328,3795.8,3795.6,0.554]
[1717344633923,2.68448328,3795.8,3795.0,2.2629]
[1717344634147,2.68448328,3795.8,3795.2,0.554]
[1717344634431,2.63466,3795.6,3794.9,2.63506]
[1717344634770,0.04984356,3795.5,3795.2,0.554]
[1717344635347,0.75,3795.3,3795.2,0.554]
[1717344635918,0.75,3795.3,3794.9,2.63506]
[1717344635919,0.79984356,3795.3,3794.9,2.63506]
[1717344636161,0.79984356,3795.3,3795.2,0.554]
[1717344636771,0.79984356,3795.3,3794.9,2.63506]
[1717344636932,0.79984356,3795.3,3795.2,0.554]
[1717344643074,0.79984356,3795.3,3794.9,2.63506]
[1717344643274,0.79984356,3795.3,3795.2,0.554]
[1717344649027,0.04984356,3795.3,3795.2,0.554]
[1717344649202,2.4043,3796.1,3795.3,2.63481]
[1717344649398,1.230852,3796.0,3795.5,0.554]
[1717344649614,0.75,3795.6,3795.5,0.554]
[1717344649811,0.75,3795.6,3795.3,2.63481]
[1717344650017,0.75,3795.6,3795.4,0.554]
[1717344650226,0.04952443,3795.5,3795.4,0.554]
[1717344651713,2.45382443,3795.5,3794.9,2.6351]
[1717344651912,2.45382443,3795.5,3795.3,0.554]
[1717344652112,0.32038244,3795.4,3795.3,0.554]
[1717344652434,0.36998267,3795.4,3795.3,0.554]
[1717344654833,0.36998267,3795.4,3794.9,2.6351]
[1717344655021,0.36998267,3795.4,3795.0,0.554]
[1717344658059,2.4043,3795.3,3794.7,0.0575179]
[1717344658225,0.0495045,3795.2,3794.9,0.554]
[1717344658420,0.0495045,3795.2,3794.7,0.0575179]
[1717344658643,0.0495045,3795.1,3794.9,0.554]
[1717344658840,2.4043,3795.3,3794.9,0.554]
[1717344659036,0.0495045,3795.2,3794.9,0.554]
[1717344659241,5.78897,3795.6,3795.1,0.554]
[1717344659437,0.0495085,3795.5,3795.1,0.554]
[1717344660461,0.0495085,3795.5,3794.9,0.554]
[1717344661249,2.4043,3795.4,3794.9,0.554]
[1717344661556,0.58384785,3795.3,3794.9,0.554]
[1717344661756,0.63335635,3795.3,3794.9,0.554]
[1717344662448,0.63335635,3795.3,3794.7,0.0575179]
[1717344662649,0.63335635,3795.3,3794.9,0.554]
[1717344665299,0.0495085,3795.3,3794.9,0.554]
[1717344665503,0.0495085,3795.3,3795.1,0.554]
[1717344666858,3.38467,3795.6,3795.1,0.554]
[1717344667198,3.38467,3795.6,3795.5,0.554]
[1717344667872,0.75,3795.6,3795.5,0.554]
[1717344668657,0.75,3795.6,3794.8,4.88853]
[1717344668899,0.75,3795.6,3795.3,0.554]
[1717344671808,0.75,3795.6,3794.8,4.88853]
[1717344672017,0.75,3795.6,3795.1,0.554]
[1717344672308,2.3913,3795.5,3794.8,2.63513]
[1717344672507,2.3913,3795.5,3794.8,3.18913]
[1717344672913,2.3913,3795.5,3794.7,0.0575179]
[1717344672914,5.02605,3795.5,3794.7,0.0575179]
[1717344673143,5.02605,3795.5,3794.7,0.6115179]
[1717344673343,0.6907624,3795.4,3794.7,0.6115179]
[1717344673706,0.75,3794.8,3794.7,0.0575179]
[1717344673951,0.75,3794.8,3794.7,0.6115179]
[1717344680842,0.79916136,3794.8,3794.7,0.0575179]
[1717344681063,0.79916136,3794.8,3794.7,0.6115179]
[1717344685178,0.04916136,3794.8,3794.7,2.8649179]
[1717344685559,9.90464,3795.6,3794.9,2.63511]
[1717344685905,1.27863166,3795.5,3795.1,0.554]
[1717344686066,0.75,3795.2,3795.1,0.554]
[1717344686607,0.79903766,3795.2,3795.1,0.554]
[1717344688315,0.04903766,3795.2,3795.1,3.0253]
[1717344688515,7.27,3795.6,3795.2,2.63488]
[1717344688722,7.27,3795.6,3795.5,0.554]
[1717344688889,2.63438,3796.0,3795.5,0.554]
[1717344689085,0.75,3795.6,3795.5,0.554]
[1717344695716,0.79924913,3795.6,3795.5,0.554]
[1717344701041,0.79924913,3795.6,3795.5,3.18869]
[1717344701529,0.75,3795.6,3795.5,5.65999]
[1717344701734,2.4279,3796.6,3795.9,2.63438]
[1717344702029,2.4279,3796.6,3796.5,0.554]
[1717344702191,2.934077,3796.6,3796.5,0.554]
[1717344702728,3.684077,3796.6,3796.5,0.554]
[1717344703088,3.684077,3796.6,3796.3,0.554]
[1717344705348,3.684077,3796.6,3796.1,0.554]
[1717344708157,2.63401,3796.5,3796.1,0.554]
[1717344710361,2.63401,3796.5,3796.3,0.554]
[1717344710556,0.04991535,3796.4,3796.3,0.554]
[1717344712071,0.04991535,3796.4,3796.2,0.554]
[1717344713430,0.75,3796.6,3796.2,0.554]
[1717344713627,0.75,3796.6,3796.5,0.554]
[1717344715355,0.75,3796.6,3796.0,2.3491]
[1717344715550,0.75,3796.6,3796.5,0.554]
[1717344717150,0.75,3796.6,3796.5,1.554]
[1717344722070,0.75,3796.6,3796.5,1.0]
[1717344724022,3.452878,3796.6,3796.5,1.0]
[1717344724205,3.1145,3796.6,3796.5,1.0]
[1717344725325,0.75,3796.6,3796.5,1.0]
[1717344725708,0.79977975,3796.6,3796.5,1.0]
[1717344748965,0.79977975,3796.6,3796.5,2.0]
[1717344759586,0.79977975,3796.6,3796.5,2.554]
[1717344760468,0.79977975,3796.6,3796.5,5.0481]
[1717344765608,0.79977975,3796.6,3796.5,7.6821]
[1717344766023,7.27,3797.4,3796.5,7.6821]
[1717344766176,4.89256,3797.5,3796.9,0.554]
[1717344766475,0.75,3797.0,3796.9,0.554]
[1717344766880,0.800362,3797.0,3796.9,0.554]
[1717344769703,0.800362,3797.0,3796.9,3.0477]
[1717344770017,0.050362,3797.0,3796.9,3.0477]
[1717344770418,5.2961,3797.7,3796.9,3.0477]
[1717344770589,0.75,3797.1,3796.9,2.4937]
[1717344770917,0.75,3797.1,3797.0,0.554]
[1717344773620,0.75,3797.1,3796.9,2.4937]
[1717344773827,0.75,3797.1,3796.9,0.554]
[1717344777802,3.1137,3797.1,3796.9,0.554]
[1717344778604,0.75,3797.1,3796.9,0.554]
[1717344779491,0.75,3797.1,3796.5,4.63399]
[1717344779706,0.75,3797.1,3796.7,0.554]
[1717344783146,0.75,3797.1,3796.8,0.554]
[1717344784737,2.63365,3797.0,3796.5,2.0]
[1717344784938,2.3637,3796.9,3796.5,2.0]
[1717344785321,2.3637,3796.9,3796.5,2.554]
[1717344785531,2.63365,3797.0,3796.7,0.554]
[1717344785714,0.04877841,3796.8,3796.7,0.554]
[1717344785915,2.63365,3797.0,3796.7,0.554]
[1717344786115,0.04877841,3796.8,3796.7,0.554]
[1717344786357,2.63365,3797.0,3796.7,0.554]
[1717344786515,0.04877841,3796.8,3796.7,0.554]
[1717344786718,2.63365,3797.0,3796.7,0.554]
[1717344786931,0.04872256,3796.8,3796.7,0.554]
[1717344787111,2.63365,3797.0,3796.7,0.554]
[1717344787299,0.04872256,3796.8,3796.7,0.554]
[1717344787504,2.63365,3797.0,3796.7,0.554]
[1717344787735,0.04872256,3796.8,3796.7,0.554]
[1717344787938,2.63365,3797.0,3796.7,0.554]
[1717344788136,0.04872256,3796.8,3796.7,0.554]
[1717344788341,2.63365,3797.0,3796.7,0.554]
[1717344788547,0.04872256,3796.8,3796.7,0.554]
[1717344788855,2.63365,3797.0,3796.7,0.554]
[1717344789019,0.04876243,3796.8,3796.7,0.554]
[1717344789217,2.63365,3797.0,3796.7,0.554]
[1717344789446,0.04876243,3796.8,3796.7,0.554]
[1717344789632,2.63365,3797.0,3796.7,0.554]
[1717344790145,0.04876243,3796.9,3796.7,0.554]
[1717344792119,0.04876243,3796.9,3796.5,2.554]
[1717344793751,0.04876243,3796.9,3796.5,2.0]
[1717344793958,2.4298,3796.8,3796.5,2.0]
[1717344794371,0.04877043,3796.7,3796.5,2.0]
[1717344794860,2.4298,3796.8,3796.5,2.0]
[1717344795041,0.04877043,3796.6,3796.5,2.0]
[1717344795567,2.4298,3796.8,3796.5,2.0]
[1717344795718,0.0487465,3796.6,3796.5,2.0]
[1717344795918,2.4298,3796.8,3796.5,2.0]
[1717344796132,0.0487465,3796.6,3796.5,2.0]
[1717344796332,2.4298,3796.8,3796.5,2.0]
[1717344796533,0.0487465,3796.6,3796.5,2.0]
[1717344796827,2.4298,3796.8,3796.5,2.0]
[1717344797028,0.0487465,3796.6,3796.5,2.0]
[1717344797229,2.4298,3796.8,3796.5,2.0]
[1717344797833,0.04873053,3796.7,3796.5,2.0]
[1717344798100,2.4298,3796.8,3796.5,2.0]
[1717344798734,0.04873053,3796.7,3796.5,2.0]
[1717344798942,2.4298,3796.8,3796.5,2.0]
[1717344799127,0.04873053,3796.6,3796.5,2.0]
[1717344799334,2.4298,3796.8,3796.5,2.0]
[1717344799562,0.04873053,3796.6,3796.5,2.0]
[1717344799755,2.4298,3796.8,3796.5,2.0]
[1717344799972,0.04873053,3796.6,3796.5,2.0]
[1717344800143,2.4298,3796.8,3796.5,2.0]
[1717344800346,0.04873053,3796.6,3796.5,2.0]
[1717344800946,2.4298,3796.8,3796.5,2.0]
[1717344801146,0.04873053,3796.6,3796.5,2.0]
[1717344801346,2.4298,3796.8,3796.5,2.0]
[1717344801888,0.04873053,3796.7,3796.5,2.0]
[1717344802101,2.4298,3796.8,3796.5,2.0]
[1717344802249,0.04873053,3796.6,3796.5,2.0]
[1717344802588,2.4298,3796.8,3796.5,2.0]
[1717344802795,0.04873053,3796.6,3796.5,2.0]
[1717344803392,2.4298,3796.8,3796.5,2.0]
[1717344803595,0.04873053,3796.6,3796.5,2.0]
[1717344803763,2.4298,3796.8,3796.5,2.0]
[1717344803965,0.04873053,3796.6,3796.5,2.0]
[1717344804203,2.4298,3796.8,3796.5,2.0]
[1717344804677,0.04873053,3796.7,3796.5,2.0]
[1717344804886,2.4298,3796.8,3796.5,2.0]
[1717344805204,0.04873053,3796.6,3796.5,2.0]
[1717344805408,2.4298,3796.8,3796.5,2.0]
[1717344805562,0.04873053,3796.6,3796.5,2.0]
[1717344805793,2.4298,3796.8,3796.5,2.0]
[1717344806016,0.04872257,3796.6,3796.5,2.0]
[1717344806179,5.06345,3797.0,3796.5,2.0]
[1717344806376,0.04872257,3796.6,3796.5,2.0]
[1717344806587,5.06345,3797.0,3796.5,2.0]
[1717344807090,0.04872257,3796.9,3796.5,2.0]
[1717344807915,2.6338,3796.8,3796.5,2.0]
[1717344808422,0.04872257,3796.7,3796.5,2.0]
[1717344808782,2.6338,3796.8,3796.5,2.0]
[1717344809006,0.04870263,3796.6,3796.5,2.0]
[1717344809178,2.6338,3796.8,3796.5,2.0]
[1717344809821,0.04870263,3796.7,3796.5,2.0]
[1717344810184,2.6338,3796.8,3796.5,2.0]
[1717344810818,0.04870263,3796.7,3796.5,2.0]
[1717344811329,0.0487146,3796.6,3796.5,2.0]
[1717344811530,2.6338,3796.8,3796.5,2.0]
[1717344811815,0.0487146,3796.6,3796.5,2.0]
[1717344811983,2.6338,3796.8,3796.5,2.0]
[1717344812617,0.0487146,3796.7,3796.5,2.0]
[1717344813143,0.0487146,3796.6,3796.5,2.0]
[1717344813282,2.6338,3796.8,3796.5,2.0]
[1717344813483,0.0487146,3796.6,3796.5,2.0]
[1717344813682,2.6338,3796.8,3796.5,2.0]
[1717344813901,0.0487146,3796.7,3796.5,2.0]
[1717344814110,2.6338,3796.8,3796.5,2.0]
[1717344814432,0.0487146,3796.6,3796.5,2.0]
[1717344814632,2.6338,3796.8,3796.5,2.0]
[1717344814948,0.0487146,3796.7,3796.5,2.0]
[1717344815239,2.6338,3796.8,3796.5,2.0]
[1717344815690,0.0487146,3796.7,3796.5,2.0]
[1717344815895,2.6338,3796.8,3796.5,2.0]
[1717344816207,0.0487146,3796.6,3796.5,2.0]
[1717344816406,2.6338,3796.8,3796.5,2.0]